fUST/lending_fUST_20240726
["ID","MTS","AMOUNT","RATE_DAILY","PERIOD"]
[333187079,1721928640258,-500.0,0.00013698,2]
[333187081,1721928640267,-500.0,0.00013698,2]
[333187083,1721928640276,-500.0,0.00013698,2]
[333187085,1721928640287,-500.0,0.00013698,2]
[333187087,1721928640297,-500.0,0.00013698,2]
[333187089,1721928640307,-500.0,0.00013698,2]
[333187091,1721928640318,-500.0,0.00013698,2]
[333187093,1721928640327,-501.07115651,0.00013698,2]
[333187095,1721928640337,-500.0,0.00013698,2]
[333187097,1721928640346,-500.0,0.00013698,2]
[333187099,1721928640355,-501.53988826,0.00013698,2]
[333187101,1721928640364,-500.0,0.00013698,2]
[333187103,1721928640373,-500.0,0.00013698,2]
[333187105,1721928640383,-525.55842714,0.00013698,2]
[333187107,1721928640395,-500.0,0.00013698,2]
[333187109,1721928640404,-685.55,0.00013698,2]
[333187111,1721928640413,-500.0,0.00013698,2]
[333187113,1721928640423,-500.0,0.00013698,2]
[333187115,1721928640432,-500.0,0.00013698,2]
[333187117,1721928640443,-1315.11,0.00013698,2]
[333187119,1721928640452,-500.0,0.00013698,2]
[333187121,1721928640463,-500.0,0.00013698,2]
[333187123,1721928640472,-184.67716535,0.00013698,2]
[333187125,1721928640481,-500.0,0.00013698,2]
[333187127,1721928640491,-500.0,0.00013698,2]
[333187129,1721928640500,-500.0,0.00013698,2]
[333187132,1721928640510,-500.0,0.00013698,2]
[333187134,1721928640519,-151.0,0.00013698,2]
[333187136,1721928640528,-500.0,0.00013698,2]
[333187138,1721928640538,-502.14441121,0.00013698,2]
[333187140,1721928640547,-500.0,0.00013698,2]
[333187142,1721928640557,-643.77653392,0.00013698,2]
[333187144,1721928640566,-500.0,0.00013698,2]
[333187146,1721928640576,-500.0,0.00013698,2]
[333187148,1721928640586,-500.0,0.00013698,2]
[333187150,1721928640595,-473.58590118,0.00013698,2]
[333187152,1721928640604,-500.0,0.00013698,2]
[333187154,1721928640614,-500.0,0.00013698,2]
[333187156,1721928640623,-363.12720465,0.00013698,2]
[333187158,1721928640633,-500.0,0.00013698,2]
[333187160,1721928640642,-500.0,0.00013698,2]
[333187162,1721928640652,-642.21,0.00013698,2]
[333187164,1721928640662,-500.0,0.00013698,2]
[333187166,1721928640672,-500.0,0.00013698,2]
[333187168,1721928640682,-500.0,0.00013698,2]
[333187170,1721928640691,-309.18495205,0.00013698,2]
[333187172,1721928640702,-500.0,0.00013698,2]
[333187174,1721928640713,-500.0,0.00013698,2]
[333187176,1721928640723,-500.0,0.00013698,2]
[333187178,1721928640736,-500.0,0.00013698,2]
[333187180,1721928640746,-500.0,0.00013698,2]
[333187182,1721928640756,-500.0,0.00013698,2]
[333187184,1721928640765,-500.0,0.00013698,2]
[333187186,1721928640775,-413.10991431,0.00013698,2]
[333187188,1721928640785,-151.0,0.00013698,2]
[333187190,1721928640795,-500.0,0.00013698,2]
[333187192,1721928640804,-500.0,0.00013698,2]
[333187195,1721928640815,-500.0,0.00013698,2]
[333187197,1721928640824,-500.0,0.00013698,2]
[333187199,1721928640834,-151.0,0.00013698,2]
[333187200,1721928640843,-500.0,0.00013698,2]
[333187202,1721928640853,-996.72,0.00013698,2]
[333187204,1721928640863,-560.79,0.00013698,2]
[333187206,1721928640872,-500.0,0.00013698,2]
[333187209,1721928640884,-1019.38,0.00013698,2]
[333187211,1721928640894,-500.0,0.00013698,2]
[333187213,1721928640904,-500.0,0.00013698,2]
[333187215,1721928640914,-500.0,0.00013698,2]
[333187217,1721928640925,-500.0,0.00013698,2]
[333187219,1721928640935,-608.7,0.00013698,2]
[333187221,1721928640944,-504.88047884,0.00013698,2]
[333187223,1721928640954,-500.0,0.00013698,2]
[333187225,1721928640965,-500.0,0.00013698,2]
[333187227,1721928640975,-924.0,0.00013698,2]
[333187229,1721928640985,-500.0,0.00013698,2]
[333187231,1721928640994,-500.0,0.00013698,2]
[333187233,1721928641004,-151.0,0.00013698,2]
[333187235,1721928641013,-823.18,0.00013698,2]
[333187237,1721928641023,-500.0,0.00013698,2]
[333187239,1721928641033,-500.0,0.00013698,2]
[333187241,1721928641043,-248.151094,0.00013698,2]
[333187243,1721928641053,-500.0,0.00013698,2]
[333187245,1721928641063,-151.0,0.00013698,2]
[333187247,1721928641073,-500.0,0.00013698,2]
[333187249,1721928641083,-500.0,0.00013698,2]
[333187251,1721928641094,-500.0,0.00013698,2]
[333187253,1721928641103,-325.25098328,0.00013698,2]
[333187255,1721928641113,-500.0,0.00013698,2]
[333187257,1721928641124,-512.55,0.00013698,2]
[333187259,1721928641134,-500.0,0.00013698,2]
[333187261,1721928641147,-500.0,0.00013698,2]
[333187263,1721928641161,-500.0,0.00013698,2]
[333187265,1721928641171,-436.61,0.00013698,2]
[333187267,1721928641181,-500.0,0.00013698,2]
[333187269,1721928641191,-500.0,0.00013698,2]
[333187271,1721928641201,-500.0,0.00013698,2]
[333187273,1721928641213,-485.0,0.00013698,2]
[333187275,1721928641223,-500.0,0.00013698,2]
[333187277,1721928641232,-500.0,0.00013698,2]
[333187279,1721928641243,-500.0,0.00013698,2]
[333187281,1721928641253,-500.0,0.00013698,2]
[333187283,1721928641262,-500.0,0.00013698,2]
[333187285,1721928641272,-208.745872,0.00013698,2]
[333187287,1721928641282,-208.745872,0.00013698,2]
[333187289,1721928641291,-237.24241707,0.00013698,2]
[333187291,1721928641301,-208.745872,0.00013698,2]
[333187293,1721928641310,-208.745872,0.00013698,2]
[333187295,1721928641320,-1567.59,0.00013698,2]
[333187297,1721928641329,-2330.1,0.00013698,2]
[333187299,1721928641339,-500.0,0.00013698,2]
[333187301,1721928641349,-500.0,0.00013698,2]
[333187303,1721928641359,-500.0,0.00013698,2]
[333187305,1721928641369,-500.0,0.00013698,2]
[333187307,1721928641379,-500.0,0.00013698,2]
[333187309,1721928641388,-500.0,0.00013698,2]
[333187311,1721928641398,-500.0,0.00013698,2]
[333187313,1721928641408,-500.0,0.00013698,2]
[333187315,1721928641418,-196.57752393,0.00013698,2]
[333187317,1721928641429,-414.528918,0.00013698,2]
[333187319,1721928641439,-414.528918,0.00013698,2]
[333187321,1721928641448,-521.16,0.00013698,2]
[333187323,1721928641459,-500.0,0.00013698,2]
[333187326,1721928641469,-500.0,0.00013698,2]
[333187328,1721928641479,-414.528918,0.00013698,2]
[333187330,1721928641489,-414.528918,0.00013698,2]
[333187332,1721928641499,-500.0,0.00013698,2]
[333187334,1721928641509,-500.0,0.00013698,2]
[333187336,1721928641519,-661.51,0.00013698,2]
[333187338,1721928641529,-500.0,0.00013698,2]
[333187340,1721928641539,-151.0,0.00013698,2]
[333187342,1721928641550,-500.0,0.00013698,2]
[333187343,1721928641560,-500.0,0.00013698,2]
[333187344,1721928641571,-500.0,0.00013698,2]
[333187345,1721928641581,-151.0,0.00013698,2]
[333187346,1721928641590,-500.0,0.00013698,2]
[333187347,1721928641600,-500.0,0.00013698,2]
[333187348,1721928641610,-500.0,0.00013698,2]
[333187349,1721928641619,-784.31,0.00013698,2]
[333187350,1721928641628,-428.85628937,0.00013698,2]
[333187351,1721928641638,-500.0,0.00013698,2]
[333187352,1721928641648,-500.0,0.00013698,2]
[333187353,1721928641658,-500.0,0.00013698,2]
[333187354,1721928641668,-500.0,0.00013698,2]
[333187355,1721928641678,-500.0,0.00013698,2]
[333187356,1721928641687,-500.0,0.00013698,2]
[333187357,1721928641696,-500.0,0.00013698,2]
[333187358,1721928641705,-502.56433682,0.00013698,2]
[333187359,1721928641717,-500.0,0.00013698,2]
[333187360,1721928641726,-1472.23,0.00013698,2]
[333187361,1721928641735,-500.0,0.00013698,2]
[333187362,1721928641744,-500.0,0.00013698,2]
[333187363,1721928641754,-500.0,0.00013698,2]
[333187365,1721928641765,-500.0,0.00013698,2]
[333187366,1721928641774,-1043.27,0.00013698,2]
[333187368,1721928641784,-500.0,0.00013698,2]
[333187370,1721928641793,-731.69,0.00013698,2]
[333187373,1721928641803,-500.0,0.00013698,2]
[333187375,1721928641813,-1101.68,0.00013698,2]
[333187377,1721928641824,-500.0,0.00013698,2]
[333187379,1721928641834,-500.0,0.00013698,2]
[333187381,1721928641844,-500.0,0.00013698,2]
[333187383,1721928641854,-768.27,0.00013698,2]
[333187385,1721928641864,-151.0,0.00013698,2]
[333187387,1721928641875,-500.0,0.00013698,2]
[333187389,1721928641886,-151.0,0.00013698,2]
[333187391,1721928641896,-151.0,0.00013698,2]
[333187393,1721928641906,-500.0,0.00013698,2]
[333187395,1721928641917,-151.0,0.00013698,2]
[333187397,1721928641926,-500.0,0.00013698,2]
[333187399,1721928641936,-500.0,0.00013698,2]
[333187401,1721928641945,-594.7377222,0.00013698,2]
[333187404,1721928641955,-500.0,0.00013698,2]
[333187406,1721928641967,-505.35601644,0.00013698,2]
[333187408,1721928641976,-500.0,0.00013698,2]
[333187409,1721928641985,-500.0,0.00013698,2]
[333187411,1721928641995,-500.0,0.00013698,2]
[333187414,1721928642004,-838.65,0.00013698,2]
[333187416,1721928642015,-507.33764303,0.00013698,2]
[333187418,1721928642024,-1465.65,0.00013698,2]
[333187420,1721928642035,-241.819556,0.00013698,2]
[333187422,1721928642047,-512.76,0.00013698,2]
[333187424,1721928642058,-365.00000002,0.00013698,2]
[333187426,1721928642068,-500.0,0.00013698,2]
[333187428,1721928642078,-984.26,0.00013698,2]
[333187430,1721928642089,-500.0,0.00013698,2]
[333187432,1721928642099,-500.0,0.00013698,2]
[333187434,1721928642110,-1635.13,0.00013698,2]
[333187437,1721928642121,-501.93010466,0.00013698,2]
[333187439,1721928642132,-644.39030274,0.00013698,2]
[333187441,1721928642142,-937.8,0.00013698,2]
[333187443,1721928642154,-500.0,0.00013698,2]
[333187445,1721928642167,-500.0,0.00013698,2]
[333187447,1721928642177,-500.0,0.00013698,2]
[333187449,1721928642186,-500.0,0.00013698,2]
[333187451,1721928642196,-500.0,0.00013698,2]
[333187453,1721928642206,-500.0,0.00013698,2]
[333187455,1721928642217,-151.0,0.00013698,2]
[333187457,1721928642226,-500.0,0.00013698,2]
[333187459,1721928642238,-796.58,0.00013698,2]
[333187461,1721928642248,-151.0,0.00013698,2]
[333187463,1721928642258,-500.0,0.00013698,2]
[333187466,1721928642268,-885.84,0.00013698,2]
[333187468,1721928642280,-500.0,0.00013698,2]
[333187470,1721928642291,-500.0,0.00013698,2]
[333187472,1721928642302,-627.38,0.00013698,2]
[333187474,1721928642313,-500.0,0.00013698,2]
[333187476,1721928642324,-500.0,0.00013698,2]
[333187478,1721928642334,-500.0,0.00013698,2]
[333187480,1721928642343,-451.32190258,0.00013698,2]
[333187482,1721928642353,-500.0,0.00013698,2]
[333187484,1721928642364,-506.67046312,0.00013698,2]
[333187486,1721928642374,-500.0,0.00013698,2]
[333187488,1721928642383,-1294.93,0.00013698,2]
[333187490,1721928642392,-500.0,0.00013698,2]
[333187493,1721928642403,-500.0,0.00013698,2]
[333187495,1721928642413,-500.0,0.00013698,2]
[333187497,1721928642423,-1290.63,0.00013698,2]
[333187499,1721928642433,-500.0,0.00013698,2]
[333187501,1721928642443,-500.0,0.00013698,2]
[333187503,1721928642452,-500.0,0.00013698,2]
[333187505,1721928642464,-500.0,0.00013698,2]
[333187507,1721928642474,-500.0,0.00013698,2]
[333187509,1721928642484,-500.0,0.00013698,2]
[333187511,1721928642494,-500.0,0.00013698,2]
[333187513,1721928642503,-500.0,0.00013698,2]
[333187515,1721928642514,-505.33695051,0.00013698,2]
[333187517,1721928642523,-543.54,0.00013698,2]
[333187519,1721928642533,-500.0,0.00013698,2]
[333187521,1721928642542,-500.0,0.00013698,2]
[333187523,1721928642551,-500.0,0.00013698,2]
[333187549,1721928642674,-500.0,0.00013698,2]
[333187552,1721928642702,-500.0,0.00013698,2]
[333187553,1721928642714,-502.20136358,0.00013698,2]
[333187555,1721928642724,-500.0,0.00013698,2]
[333187558,1721928642733,-500.0,0.00013698,2]
[333187561,1721928642742,-687.11,0.00013698,2]
[333187564,1721928642751,-787.93,0.00013698,2]
[333187566,1721928642760,-500.0,0.00013698,2]
[333187568,1721928642770,-959.39,0.00013698,2]
[333187570,1721928642780,-500.0,0.00013698,2]
[333187573,1721928642790,-559.46,0.00013698,2]
[333187575,1721928642800,-500.0,0.00013698,2]
[333187577,1721928642810,-500.0,0.00013698,2]
[333187579,1721928642819,-500.0,0.00013698,2]
[333187581,1721928642829,-500.0,0.00013698,2]
[333187583,1721928642839,-536.79995882,0.00013698,2]
[333187584,1721928642848,-500.0,0.00013698,2]
[333187585,1721928642858,-500.0,0.00013698,2]
[333187586,1721928642869,-500.0,0.00013698,2]
[333187588,1721928642879,-500.0,0.00013698,2]
[333187589,1721928642889,-500.0,0.00013698,2]
[333187590,1721928642899,-500.0,0.00013698,2]
[333187592,1721928642909,-1138.54,0.00013698,2]
[333187594,1721928642919,-500.0,0.00013698,2]
[333187596,1721928642930,-500.0,0.00013698,2]
[333187597,1721928642940,-500.0,0.00013698,2]
[333187598,1721928642950,-500.0,0.00013698,2]
[333187599,1721928642960,-500.0,0.00013698,2]
[333187600,1721928642970,-500.0,0.00013698,2]
[333187601,1721928642978,-500.0,0.00013698,2]
[333187602,1721928642989,-1209.57,0.00013698,2]
[333187603,1721928642999,-1185.04,0.00013698,2]
[333187604,1721928643010,-508.77650918,0.00013698,2]
[333187605,1721928643020,-500.0,0.00013698,2]
[333187606,1721928643031,-500.0,0.00013698,2]
[333187607,1721928643041,-500.0,0.00013698,2]
[333187608,1721928643051,-500.0,0.00013698,2]
[333187609,1721928643061,-500.0,0.00013698,2]
[333187610,1721928643073,-454.1725307,0.00013698,2]
[333187611,1721928643105,-45.8274693,0.00013698,2]
[333187612,1721928643115,-500.0,0.00013698,2]
[333187613,1721928643124,-46.97872943,0.00013698,2]
[333187616,1721928643155,-481.61127057,0.00013698,2]
[333187617,1721928643168,-500.0,0.00013698,2]
[333187619,1721928643177,-500.0,0.00013698,2]
[333187621,1721928643188,-500.0,0.00013698,2]
[333187623,1721928643199,-500.0,0.00013698,2]
[333187624,1721928643210,-500.0,0.00013698,2]
[333187626,1721928643221,-500.0,0.00013698,2]
[333187628,1721928643233,-500.0,0.00013698,2]
[333187630,1721928643243,-500.0,0.00013698,2]
[333187631,1721928643254,-500.0,0.00013698,2]
[333187632,1721928643263,-500.0,0.00013698,2]
[333187633,1721928643272,-500.0,0.00013698,2]
[333187634,1721928643283,-500.0,0.00013698,2]
[333187635,1721928643293,-500.0,0.00013698,2]
[333187636,1721928643304,-500.0,0.00013698,2]
[333187637,1721928643313,-300.2470945,0.00013698,2]
[333187638,1721928643326,-500.0,0.00013698,2]
[333187639,1721928643334,-151.0,0.00013698,2]
[333187640,1721928643343,-500.0,0.00013698,2]
[333187641,1721928643354,-500.0,0.00013698,2]
[333187642,1721928643365,-151.0,0.00013698,2]
[333187643,1721928643375,-1165.27,0.00013698,2]
[333187644,1721928643385,-1713.14,0.00013698,2]
[333187645,1721928643396,-500.0,0.00013698,2]
[333187646,1721928643408,-662.56258,0.00013698,2]
[333187647,1721928643417,-542.51035399,0.00013698,2]
[333187648,1721928643426,-662.56258,0.00013698,2]
[333187649,1721928643437,-1027.09,0.00013698,2]
[333187650,1721928643446,-500.0,0.00013698,2]
[333187651,1721928643457,-500.0,0.00013698,2]
[333187652,1721928643468,-854.31,0.00013698,2]
[333187653,1721928643477,-528.98572719,0.00013698,2]
[333187654,1721928643486,-529.56292281,0.00013698,2]
[333187655,1721928643496,-500.0,0.00013698,2]
[333187656,1721928643507,-529.78928007,0.00013698,2]
[333187657,1721928643517,-500.0,0.00013698,2]
[333187658,1721928643529,-500.0,0.00013698,2]
[333187659,1721928643539,-667.59,0.00013698,2]
[333187660,1721928643548,-151.0,0.00013698,2]
[333187661,1721928643558,-500.0,0.00013698,2]
[333187662,1721928643569,-500.0,0.00013698,2]
[333187663,1721928643580,-650.0,0.00013698,2]
[333187664,1721928643590,-500.0,0.00013698,2]
[333187665,1721928643599,-500.0,0.00013698,2]
[333187666,1721928643610,-545.21987937,0.00013698,2]
[333187667,1721928643621,-256.747427,0.00013698,2]
[333187668,1721928643631,-256.747427,0.00013698,2]
[333187669,1721928643642,-1094.13,0.00013698,2]
[333187670,1721928643654,-500.0,0.00013698,2]
[333187671,1721928643664,-1813.648089,0.00013698,2]
[333187672,1721928643674,-500.0,0.00013698,2]
[333187673,1721928643683,-505.69005528,0.00013698,2]
[333187674,1721928643695,-256.747427,0.00013698,2]
[333187675,1721928643705,-256.747427,0.00013698,2]
[333187676,1721928643717,-1813.648089,0.00013698,2]
[333187677,1721928643728,-151.0,0.00013698,2]
[333187678,1721928643740,-500.0,0.00013698,2]
[333187679,1721928643752,-500.0,0.00013698,2]
[333187680,1721928643765,-296.02832043,0.00013698,2]
[333187681,1721928643773,-500.0,0.00013698,2]
[333187682,1721928643783,-1093.67,0.00013698,2]
[333187683,1721928643792,-500.0,0.00013698,2]
[333187684,1721928643801,-500.0,0.00013698,2]
[333187685,1721928643810,-500.0,0.00013698,2]
[333187686,1721928643819,-512.12751702,0.00013698,2]
[333187687,1721928643827,-500.0,0.00013698,2]
[333187688,1721928643837,-537.08211656,0.00013698,2]
[333187689,1721928643848,-538.62,0.00013698,2]
[333187690,1721928643860,-500.0,0.00013698,2]
[333187691,1721928643870,-967.81,0.00013698,2]
[333187692,1721928643881,-151.0,0.00013698,2]
[333187693,1721928643894,-500.0,0.00013698,2]
[333187694,1721928643904,-3023.61,0.00013698,2]
[333187695,1721928643914,-643.53,0.00013698,2]
[333187696,1721928643923,-955.6,0.00013698,2]
[333187697,1721928643935,-500.0,0.00013698,2]
[333187698,1721928643945,-510.82,0.00013698,2]
[333187699,1721928643956,-1531.63,0.00013698,2]
[333187700,1721928643967,-702.25,0.00013698,2]
[333187701,1721928643976,-500.0,0.00013698,2]
[333187702,1721928643985,-186.165978,0.00013698,2]
[333187703,1721928643995,-186.165978,0.00013698,2]
[333187704,1721928644005,-500.0,0.00013698,2]
[333187705,1721928644014,-500.0,0.00013698,2]
[333187706,1721928644023,-500.0,0.00013698,2]
[333187707,1721928644032,-186.165978,0.00013698,2]
[333187708,1721928644042,-500.0,0.00013698,2]
[333187709,1721928644052,-186.165978,0.00013698,2]
[333187710,1721928644061,-500.0,0.00013698,2]
[333187711,1721928644071,-280.05291229,0.00013698,2]
[333187712,1721928644080,-500.0,0.00013698,2]
[333187713,1721928644089,-2160.84,0.00013698,2]
[333187714,1721928644099,-571.92,0.00013698,2]
[333187715,1721928644110,-516.03261185,0.00013698,2]
[333187716,1721928644120,-500.0,0.00013698,2]
[333187717,1721928644132,-500.0,0.00013698,2]
[333187718,1721928644144,-500.0,0.00013698,2]
[333187719,1721928644155,-506.01,0.00013698,2]
[333187720,1721928644168,-500.0,0.00013698,2]
[333187721,1721928644178,-2230.22,0.00013698,2]
[333187722,1721928644189,-500.0,0.00013698,2]
[333187723,1721928644198,-508.20131999,0.00013698,2]
[333187724,1721928644209,-896.99,0.00013698,2]
[333187725,1721928644224,-500.0,0.00013698,2]
[333187726,1721928644235,-500.0,0.00013698,2]
[333187727,1721928644247,-500.0,0.00013698,2]
[333187728,1721928644259,-403.19331606,0.00013698,2]
[333187729,1721928644479,-273.37336231,9.9e-05,2]
[333187730,1721928644488,-154.80649189,0.00011412,2]
[333187731,1721928644497,-300.0501458,0.00013698,2]
[333187749,1721928646424,-1465.44653814,0.00013698,2]
[333187751,1721928646435,-151.0,0.00013698,2]
[333187753,1721928646445,-500.0,0.00013698,2]
[333187754,1721928646456,-500.0,0.00013698,2]
[333187755,1721928646469,-503.56915598,0.00013698,2]
[333187756,1721928646480,-1102.29,0.00013698,2]
[333187757,1721928646490,-500.0,0.00013698,2]
[333187758,1721928646500,-500.0,0.00013698,2]
[333187759,1721928646511,-518.50610606,0.00013698,2]
[333187760,1721928646521,-500.0,0.00013698,2]
[333187761,1721928646532,-500.0,0.00013698,2]
[333187762,1721928646543,-500.0,0.00013698,2]
[333187763,1721928646554,-1079.28,0.00013698,2]
[333187764,1721928646564,-500.0,0.00013698,2]
[333187765,1721928646576,-3038.95,0.00013698,2]
[333187766,1721928646586,-259.02,0.00013698,2]
[333187767,1721928646596,-500.0,0.00013698,2]
[333187768,1721928646607,-215.86503214,0.00013698,2]
[333187769,1721928646619,-500.0,0.00013698,2]
[333187770,1721928646630,-500.89592708,0.00013698,2]
[333187771,1721928646642,-500.0,0.00013698,2]
[333187772,1721928646653,-259.02,0.00013698,2]
[333187773,1721928646663,-1956.66,0.00013698,2]
[333187774,1721928646674,-500.0,0.00013698,2]
[333187775,1721928646685,-500.0,0.00013698,2]
[333187776,1721928646697,-500.0,0.00013698,2]
[333187777,1721928646708,-500.0,0.00013698,2]
[333187778,1721928646718,-3240.79,0.00013698,2]
[333187779,1721928646729,-794.17,0.00013698,2]
[333187780,1721928646740,-500.0,0.00013698,2]
[333187781,1721928646750,-500.0,0.00013698,2]
[333187782,1721928646761,-500.0,0.00013698,2]
[333187783,1721928646772,-609.59945594,0.00013698,2]
[333187784,1721928646783,-1663.33,0.00013698,2]
[333187785,1721928646794,-500.0,0.00013698,2]
[333187786,1721928646805,-500.0,0.00013698,2]
[333187787,1721928646814,-500.0,0.00013698,2]
[333187788,1721928646827,-151.0,0.00013698,2]
[333187789,1721928646838,-500.0,0.00013698,2]
[333187790,1721928646851,-154.485045,0.00013698,2]
[333187791,1721928646862,-500.0,0.00013698,2]
[333187792,1721928646873,-500.0,0.00013698,2]
[333187793,1721928646885,-500.0,0.00013698,2]
[333187794,1721928646896,-1089.79,0.00013698,2]
[333187795,1721928646908,-500.0,0.00013698,2]
[333187796,1721928646919,-213.91167153,0.00013698,2]
[333187797,1721928646930,-403.60933229,0.00013698,2]
[333187798,1721928646939,-500.0,0.00013698,2]
[333187799,1721928646949,-513.4665927,0.00013698,2]
[333187800,1721928646958,-500.0,0.00013698,2]
[333187801,1721928646968,-500.0,0.00013698,2]
[333187802,1721928646979,-1812.0,0.00013698,2]
[333187803,1721928646989,-916.05,0.00013698,2]
[333187804,1721928647001,-500.0,0.00013698,2]
[333187805,1721928647010,-500.0,0.00013698,2]
[333187806,1721928647019,-500.0,0.00013698,2]
[333187807,1721928647029,-151.0,0.00013698,2]
[333187808,1721928647038,-500.0,0.00013698,2]
[333187809,1721928647047,-500.0,0.00013698,2]
[333187810,1721928647056,-151.0,0.00013698,2]
[333187811,1721928647065,-500.0,0.00013698,2]
[333187812,1721928647074,-852.87,0.00013698,2]
[333187813,1721928647083,-500.0,0.00013698,2]
[333187814,1721928647093,-11128.86,0.00013698,2]
[333187815,1721928647102,-500.0,0.00013698,2]
[333187816,1721928647111,-7430.87,0.00013698,2]
[333187817,1721928647121,-300.0,0.00013698,2]
[333187818,1721928647130,-1809.44,0.00013698,2]
[333187819,1721928647139,-500.0,0.00013698,2]
[333187820,1721928647148,-500.0,0.00013698,2]
[333187821,1721928647368,-1078.42,0.00013698,2]
[333187822,1721928647378,-1463.94,0.00013698,2]
[333187823,1721928647390,-500.0,0.00013698,2]
[333187824,1721928647400,-1975.13,0.00013698,2]
[333187825,1721928647411,-500.0,0.00013698,2]
[333187826,1721928647422,-4645.21,0.00013698,2]
[333187827,1721928647431,-500.0,0.00013698,2]
[333187828,1721928647441,-500.0,0.00013698,2]
[333187829,1721928647452,-500.0,0.00013698,2]
[333187830,1721928647461,-500.0,0.00013698,2]
[333187831,1721928647471,-151.0,0.00013698,2]
[333187832,1721928647480,-151.0,0.00013698,2]
[333187833,1721928647489,-500.0,0.00013698,2]
[333187834,1721928647499,-500.0,0.00013698,2]
[333187835,1721928647508,-9320.52,0.00013698,2]
[333187836,1721928647519,-500.0,0.00013698,2]
[333187837,1721928647528,-500.0,0.00013698,2]
[333187838,1721928647537,-500.0,0.00013698,2]
[333187839,1721928647546,-500.0,0.00013698,2]
[333187840,1721928647556,-2059.35,0.00013698,2]
[333187841,1721928647565,-500.0,0.00013698,2]
[333187842,1721928647574,-500.0,0.00013698,2]
[333187843,1721928647583,-500.0,0.00013698,2]
[333187844,1721928647592,-500.0,0.00013698,2]
[333187845,1721928647601,-665.36,0.00013698,2]
[333187846,1721928647611,-500.0,0.00013698,2]
[333187847,1721928647620,-933.06,0.00013698,2]
[333187848,1721928647629,-500.0,0.00013698,2]
[333187849,1721928647638,-507.90756688,0.00013698,2]
[333187850,1721928647648,-500.0,0.00013698,2]
[333187851,1721928647657,-968.97,0.00013698,2]
[333187852,1721928647667,-500.0,0.00013698,2]
[333187853,1721928647677,-500.0,0.00013698,2]
[333187854,1721928647687,-500.0,0.00013698,2]
[333187855,1721928647697,-500.0,0.00013698,2]
[333187856,1721928647706,-500.0,0.00013698,2]
[333187857,1721928647716,-500.0,0.00013698,2]
[333187858,1721928647727,-5404.43,0.00013698,2]
[333187859,1721928647736,-500.0,0.00013698,2]
[333187860,1721928647745,-638.01,0.00013698,2]
[333187861,1721928647754,-542.34,0.00013698,2]
[333187862,1721928647763,-1488.62,0.00013698,2]
[333187863,1721928647773,-151.0,0.00013698,2]
[333187864,1721928647783,-151.0,0.00013698,2]
[333187865,1721928647792,-151.0,0.00013698,2]
[333187866,1721928647801,-500.0,0.00013698,2]
[333187867,1721928647811,-1910.87,0.00013698,2]
[333187868,1721928647821,-549.7,0.00013698,2]